[Event "Early-Titled-Tuesday-Blitz-April-16-2024"]
[Site "Chess.com"]
[Date "2024.04.16"]
[Round "2"]
[White "NovoselovRoman"]
[Black "BardArtem"]
[Result "1/2-1/2"]
[WhiteElo "2584"]
[BlackElo "2852"]
[TimeControl "180+1"]
[EndTime "8:18:37 PDT"]
[Termination "Game drawn by repetition"]

1. e4 {[%clk 0:03:00.9]} 1... d5 {[%clk 0:02:59.2]} 2. exd5 {[%clk 0:03:00.7]}
2... Qxd5 {[%clk 0:03:00.1]} 3. Nc3 {[%clk 0:03:00.6]} 3... Qe5+ {[%clk
0:03:00.1]} 4. Be2 {[%clk 0:02:59.8]} 4... Bg4 {[%clk 0:02:59.7]} 5. d4 {[%clk
0:03:00.1]} 5... Bxe2 {[%clk 0:03:00.4]} 6. Ngxe2 {[%clk 0:03:00.5]} 6... Qa5
{[%clk 0:03:01.1]} 7. O-O {[%clk 0:03:00.6]} 7... Nf6 {[%clk 0:03:01.5]} 8. Bf4
{[%clk 0:02:57.1]} 8... Nc6 {[%clk 0:03:01.5]} 9. a4 {[%clk 0:02:10.7]} 9...
O-O-O {[%clk 0:02:49.9]} 10. Nb5 {[%clk 0:02:09.2]} 10... e5 {[%clk 0:02:42]}
11. Bd2 {[%clk 0:02:08.3]} 11... Qb6 {[%clk 0:02:24.9]} 12. c4 {[%clk
0:01:38.7]} 12... exd4 {[%clk 0:02:03.7]} 13. Bf4 {[%clk 0:01:38.6]} 13... Bd6
{[%clk 0:01:57.7]} 14. Bxd6 {[%clk 0:01:37]} 14... cxd6 {[%clk 0:01:58.3]} 15.
Nexd4 {[%clk 0:01:36.7]} 15... Nxd4 {[%clk 0:01:58.3]} 16. Nxd4 {[%clk
0:01:31.1]} 16... a5 {[%clk 0:01:53.1]} 17. Nb5 {[%clk 0:01:29.7]} 17... Kb8
{[%clk 0:01:50]} 18. Qf3 {[%clk 0:01:25.7]} 18... d5 {[%clk 0:01:48.9]} 19. cxd5
{[%clk 0:01:01]} 19... Nxd5 {[%clk 0:01:39.2]} 20. Rad1 {[%clk 0:01:00.3]} 20...
Nc7 {[%clk 0:01:21.2]} 21. Qg3 {[%clk 0:00:59.3]} 21... Rhe8 {[%clk 0:00:51.3]}
22. h3 {[%clk 0:00:49.8]} 22... f5 {[%clk 0:00:37.3]} 23. Rxd8+ {[%clk
0:00:41.7]} 23... Rxd8 {[%clk 0:00:38.2]} 24. Re1 {[%clk 0:00:41.5]} 24... g5
{[%clk 0:00:26.1]} 25. Qxg5 {[%clk 0:00:38.3]} 25... Nxb5 {[%clk 0:00:25.2]} 26.
axb5 {[%clk 0:00:37.5]} 26... Rd5 {[%clk 0:00:13.5]} 27. Qg8+ {[%clk 0:00:35.1]}
27... Rd8 {[%clk 0:00:12.8]} 28. Re8 {[%clk 0:00:20.2]} 28... Rxe8 {[%clk
0:00:10.8]} 29. Qxe8+ {[%clk 0:00:21.1]} 29... Ka7 {[%clk 0:00:11.7]} 30. Qe5
{[%clk 0:00:21.5]} 30... Qh6 {[%clk 0:00:07.4]} 31. Qc5+ {[%clk 0:00:20.8]}
31... Kb8 {[%clk 0:00:06.7]} 32. b6 {[%clk 0:00:20.6]} 32... Qc6 {[%clk
0:00:03.9]} 33. Qe5+ {[%clk 0:00:14.8]} 33... Kc8 {[%clk 0:00:02.2]} 34. Qxf5+
{[%clk 0:00:15.3]} 34... Kd8 {[%clk 0:00:02.9]} 35. Qf8+ {[%clk 0:00:14.2]}
35... Kd7 {[%clk 0:00:03.4]} 36. Qf7+ {[%clk 0:00:14.6]} 36... Kd8 {[%clk
0:00:04.1]} 37. Qg8+ {[%clk 0:00:08.1]} 37... Ke7 {[%clk 0:00:01.9]} 38. Qxh7+
{[%clk 0:00:08.4]} 38... Kd8 {[%clk 0:00:02.6]} 39. Qd3+ {[%clk 0:00:06.8]}
39... Ke7 {[%clk 0:00:02.5]} 40. Qe3+ {[%clk 0:00:06.1]} 40... Kd8 {[%clk
0:00:03.1]} 41. h4 {[%clk 0:00:06.4]} 41... Qc4 {[%clk 0:00:02]} 42. h5 {[%clk
0:00:06.1]} 42... Qc2 {[%clk 0:00:01.8]} 43. h6 {[%clk 0:00:05.8]} 43... Qd1+
{[%clk 0:00:02.3]} 44. Kh2 {[%clk 0:00:06]} 44... Qh5+ {[%clk 0:00:03]} 45. Qh3
{[%clk 0:00:06.1]} 45... Qe5+ {[%clk 0:00:03.7]} 46. g3 {[%clk 0:00:06.3]} 46...
Qxb2 {[%clk 0:00:04.4]} 47. Qh4+ {[%clk 0:00:05.9]} 47... Kd7 {[%clk 0:00:03.2]}
48. Qg4+ {[%clk 0:00:05.9]} 48... Kc6 {[%clk 0:00:03.4]} 49. Qf3+ {[%clk
0:00:05.6]} 49... Kxb6 {[%clk 0:00:03.8]} 50. h7 {[%clk 0:00:05.2]} 50... Qh8
{[%clk 0:00:03.9]} 51. Qf7 {[%clk 0:00:04.5]} 51... a4 {[%clk 0:00:02]} 52. Qg8
{[%clk 0:00:04.7]} 52... Qb2 {[%clk 0:00:02.7]} 53. h8=Q {[%clk 0:00:05]} 53...
Qxf2+ {[%clk 0:00:02.8]} 54. Kh3 {[%clk 0:00:05.6]} 54... Qf1+ {[%clk
0:00:02.9]} 55. Kh4 {[%clk 0:00:06.2]} 55... Qh1+ {[%clk 0:00:02.4]} 56. Kg5
{[%clk 0:00:06.3]} 56... Qc1+ {[%clk 0:00:03]} 57. Kh5 {[%clk 0:00:06.4]} 57...
Qh1+ {[%clk 0:00:02.6]} 58. Kg6 {[%clk 0:00:06.7]} 58... Qe4+ {[%clk 0:00:03.3]}
59. Kf7 {[%clk 0:00:06.7]} 59... Qf5+ {[%clk 0:00:02.2]} 60. Ke7 {[%clk
0:00:06.4]} 60... Qc5+ {[%clk 0:00:02.6]} 61. Ke8 {[%clk 0:00:03.8]} 61... Qc8+
{[%clk 0:00:02.9]} 62. Kf7 {[%clk 0:00:04.2]} 62... Qf5+ {[%clk 0:00:03.3]} 63.
Kg7 {[%clk 0:00:04.2]} 63... Qg5+ {[%clk 0:00:03.4]} 64. Kf7 {[%clk 0:00:04.4]}
64... Qf5+ {[%clk 0:00:03.9]} 1/2-1/2

[Event "Early-Titled-Tuesday-Blitz-April-16-2024"]
[Site "Chess.com"]
[Date "2024.04.16"]
[Round "2"]
[White "Anton_Demchenko"]
[Black "Timerkhanov"]
[Result "1/2-1/2"]
[WhiteElo "3013"]
[BlackElo "2625"]
[TimeControl "180+1"]
[EndTime "8:18:44 PDT"]
[Termination "Game drawn - insufficient material"]

1. e4 {[%clk 0:03:00.9]} 1... c5 {[%clk 0:02:57.8]} 2. Nf3 {[%clk 0:03:01.5]}
2... a6 {[%clk 0:02:58.4]} 3. c3 {[%clk 0:02:59.3]} 3... d5 {[%clk 0:02:58.1]}
4. exd5 {[%clk 0:02:59.1]} 4... Qxd5 {[%clk 0:02:57.6]} 5. Na3 {[%clk
0:02:57.7]} 5... Nf6 {[%clk 0:02:56.8]} 6. Nc4 {[%clk 0:02:51.6]} 6... Bg4
{[%clk 0:02:56.7]} 7. Ne3 {[%clk 0:02:42.8]} 7... Qd7 {[%clk 0:02:28.3]} 8. Nxg4
{[%clk 0:02:40.5]} 8... Qxg4 {[%clk 0:02:28.7]} 9. h3 {[%clk 0:02:21.9]} 9...
Qc8 {[%clk 0:02:23.5]} 10. d4 {[%clk 0:02:19.8]} 10... e6 {[%clk 0:02:23.4]} 11.
Be2 {[%clk 0:02:07.2]} 11... Nc6 {[%clk 0:02:23.4]} 12. O-O {[%clk 0:02:07.8]}
12... Be7 {[%clk 0:02:22]} 13. Bg5 {[%clk 0:01:55.8]} 13... h6 {[%clk
0:02:11.8]} 14. Bh4 {[%clk 0:01:54.2]} 14... O-O {[%clk 0:02:03.5]} 15. dxc5
{[%clk 0:01:49.6]} 15... Bxc5 {[%clk 0:02:03.1]} 16. Qc2 {[%clk 0:01:44]} 16...
Nd5 {[%clk 0:01:59.7]} 17. Bg3 {[%clk 0:01:41.2]} 17... Nce7 {[%clk 0:01:57.6]}
18. Bd3 {[%clk 0:01:39.9]} 18... Rd8 {[%clk 0:01:44.5]} 19. Rad1 {[%clk
0:01:33.7]} 19... Nc6 {[%clk 0:01:28.3]} 20. Qe2 {[%clk 0:01:30.6]} 20... Bd6
{[%clk 0:01:19.6]} 21. Bxd6 {[%clk 0:00:44.1]} 21... Rxd6 {[%clk 0:01:20.5]} 22.
Bc2 {[%clk 0:00:44.7]} 22... Rd8 {[%clk 0:01:11.2]} 23. Rfe1 {[%clk 0:00:36.6]}
23... Qc7 {[%clk 0:01:09.6]} 24. g3 {[%clk 0:00:37.2]} 24... b5 {[%clk
0:01:04.5]} 25. Bb3 {[%clk 0:00:37.3]} 25... Nf6 {[%clk 0:01:00.2]} 26. a3
{[%clk 0:00:30.5]} 26... Rxd1 {[%clk 0:00:59.3]} 27. Rxd1 {[%clk 0:00:30.5]}
27... Rd8 {[%clk 0:01:00]} 28. Rxd8+ {[%clk 0:00:28.9]} 28... Qxd8 {[%clk
0:01:00.5]} 29. Qe3 {[%clk 0:00:25.9]} 29... Na5 {[%clk 0:00:59.6]} 30. Bc2
{[%clk 0:00:13]} 30... Nc4 {[%clk 0:00:59.9]} 31. Qc1 {[%clk 0:00:13.6]} 31...
Qd5 {[%clk 0:00:59.5]} 32. Nd4 {[%clk 0:00:11.1]} 32... Nd7 {[%clk 0:00:49.5]}
33. b3 {[%clk 0:00:10.6]} 33... Nd6 {[%clk 0:00:45.7]} 34. Qe3 {[%clk
0:00:11.3]} 34... Qc5 {[%clk 0:00:37.1]} 35. Qf3 {[%clk 0:00:09.7]} 35... Nb6
{[%clk 0:00:29.9]} 36. Qc6 {[%clk 0:00:05.8]} 36... Qxc6 {[%clk 0:00:29.1]} 37.
Nxc6 {[%clk 0:00:06.7]} 37... Nd5 {[%clk 0:00:29.4]} 38. Nb4 {[%clk 0:00:04]}
38... Nxc3 {[%clk 0:00:12.1]} 39. Nxa6 {[%clk 0:00:04.3]} 39... Kf8 {[%clk
0:00:10.7]} 40. Kf1 {[%clk 0:00:04.5]} 40... Ke7 {[%clk 0:00:10.8]} 41. Ke1
{[%clk 0:00:05.3]} 41... Kd7 {[%clk 0:00:10.2]} 42. Nb4 {[%clk 0:00:06]} 42...
Nce4 {[%clk 0:00:08.2]} 43. Ke2 {[%clk 0:00:05.4]} 43... Nc5 {[%clk 0:00:07.9]}
44. Ke3 {[%clk 0:00:05.2]} 44... e5 {[%clk 0:00:07.3]} 45. Nd3 {[%clk
0:00:04.1]} 45... Nxd3 {[%clk 0:00:05.8]} 46. Bxd3 {[%clk 0:00:05]} 46... Kc6
{[%clk 0:00:05.7]} 47. f4 {[%clk 0:00:04.5]} 47... f6 {[%clk 0:00:05.5]} 48.
fxe5 {[%clk 0:00:04.5]} 48... fxe5 {[%clk 0:00:06.4]} 49. a4 {[%clk 0:00:04.4]}
49... bxa4 {[%clk 0:00:06.8]} 50. bxa4 {[%clk 0:00:05.3]} 50... Nb7 {[%clk
0:00:04.4]} 51. Be2 {[%clk 0:00:03.8]} 51... Nc5 {[%clk 0:00:04]} 52. Bb5+
{[%clk 0:00:04.1]} 52... Kd6 {[%clk 0:00:04.2]} 53. h4 {[%clk 0:00:04.8]} 53...
Nb7 {[%clk 0:00:03.4]} 54. Ke4 {[%clk 0:00:04.5]} 54... Ke6 {[%clk 0:00:03.4]}
55. Bc4+ {[%clk 0:00:04.1]} 55... Kd6 {[%clk 0:00:04]} 56. Ke3 {[%clk
0:00:03.8]} 56... Nc5 {[%clk 0:00:04.1]} 57. a5 {[%clk 0:00:04.1]} 57... Kc6
{[%clk 0:00:03]} 58. a6 {[%clk 0:00:03.9]} 58... Kb6 {[%clk 0:00:03.5]} 59. h5
{[%clk 0:00:04.5]} 59... Nd7 {[%clk 0:00:02]} 60. Ke4 {[%clk 0:00:03.1]} 60...
Nf6+ {[%clk 0:00:02.9]} 61. Kxe5 {[%clk 0:00:03.7]} 61... Nxh5 {[%clk
0:00:03.6]} 62. g4 {[%clk 0:00:03.6]} 62... Nf6 {[%clk 0:00:04.3]} 63. Kf5
{[%clk 0:00:03.4]} 63... Ka7 {[%clk 0:00:04.1]} 64. Be2 {[%clk 0:00:03]} 64...
Kb6 {[%clk 0:00:04.7]} 65. Kf4 {[%clk 0:00:03.5]} 65... Nd5+ {[%clk 0:00:03]}
66. Ke5 {[%clk 0:00:03.4]} 66... Ne3 {[%clk 0:00:03.2]} 67. Ke6 {[%clk
0:00:02.9]} 67... Nxg4 {[%clk 0:00:03.4]} 68. Bxg4 {[%clk 0:00:03.7]} 68... Kxa6
{[%clk 0:00:03.3]} 69. Kf7 {[%clk 0:00:04.5]} 69... Kb6 {[%clk 0:00:04.2]} 70.
Kxg7 {[%clk 0:00:04.7]} 70... Kc5 {[%clk 0:00:04.9]} 71. Bh5 {[%clk 0:00:05.6]}
71... Kd4 {[%clk 0:00:05.8]} 72. Kxh6 {[%clk 0:00:06.2]} 1/2-1/2

[Event "Early-Titled-Tuesday-Blitz-April-16-2024"]
[Site "Chess.com"]
[Date "2024.04.16"]
[Round "2"]
[White "JoliyRoger"]
[Black "NusratAlo"]
[Result "1-0"]
[WhiteElo "2427"]
[BlackElo "1876"]
[TimeControl "180+1"]
[EndTime "8:18:44 PDT"]
[Termination "JoliyRoger won on time"]

1. d4 {[%clk 0:03:00.9]} 1... d5 {[%clk 0:02:59.8]} 2. c4 {[%clk 0:03:01.2]}
2... c6 {[%clk 0:03:00.2]} 3. Nc3 {[%clk 0:03:01.6]} 3... Nf6 {[%clk 0:03:00.8]}
4. e3 {[%clk 0:03:00.9]} 4... e6 {[%clk 0:02:59.3]} 5. Nf3 {[%clk 0:03:01.4]}
5... Nbd7 {[%clk 0:02:51.9]} 6. b3 {[%clk 0:03:01.6]} 6... b6 {[%clk 0:02:50.2]}
7. Bb2 {[%clk 0:03:01.8]} 7... Bb7 {[%clk 0:02:50.1]} 8. Bd3 {[%clk 0:03:02.3]}
8... Bd6 {[%clk 0:02:47.8]} 9. O-O {[%clk 0:03:02.7]} 9... O-O {[%clk
0:02:46.9]} 10. Qe2 {[%clk 0:03:02.2]} 10... Rc8 {[%clk 0:02:46.9]} 11. Rac1
{[%clk 0:02:55.7]} 11... c5 {[%clk 0:02:45.9]} 12. cxd5 {[%clk 0:02:56.2]} 12...
cxd4 {[%clk 0:02:39.5]} 13. Nxd4 {[%clk 0:02:49.2]} 13... exd5 {[%clk
0:02:18.4]} 14. Ba6 {[%clk 0:02:44.4]} 14... Nc5 {[%clk 0:01:45.7]} 15. Bxb7
{[%clk 0:02:39.2]} 15... Nxb7 {[%clk 0:01:46.6]} 16. Ncb5 {[%clk 0:02:26]} 16...
a6 {[%clk 0:01:35]} 17. Rxc8 {[%clk 0:01:50.8]} 17... Qxc8 {[%clk 0:01:32.7]}
18. Nxd6 {[%clk 0:01:42.6]} 18... Nxd6 {[%clk 0:01:31.8]} 19. Rc1 {[%clk
0:01:42.4]} 19... Qb7 {[%clk 0:01:29.1]} 20. h3 {[%clk 0:01:33.9]} 20... Rc8
{[%clk 0:01:26.3]} 21. Rd1 {[%clk 0:01:25.4]} 21... Nfe4 {[%clk 0:01:23]} 22.
Qd3 {[%clk 0:01:21.3]} 22... b5 {[%clk 0:01:17.6]} 23. Nf3 {[%clk 0:01:17.4]}
23... Rc5 {[%clk 0:00:55.4]} 24. Bd4 {[%clk 0:00:54.3]} 24... Rc7 {[%clk
0:00:51.8]} 25. Be5 {[%clk 0:00:54.8]} 25... Rc5 {[%clk 0:00:49.5]} 26. Qd4
{[%clk 0:00:46.1]} 26... Qc6 {[%clk 0:00:40.6]} 27. Qa1 {[%clk 0:00:42.5]} 27...
f6 {[%clk 0:00:40.3]} 28. Nd4 {[%clk 0:00:40.2]} 28... Qc8 {[%clk 0:00:37.6]}
29. Bf4 {[%clk 0:00:38.3]} 29... Nc3 {[%clk 0:00:33.8]} 30. Re1 {[%clk 0:00:38]}
30... Nce4 {[%clk 0:00:33.4]} 31. Kh2 {[%clk 0:00:35]} 31... Nf5 {[%clk
0:00:31]} 32. f3 {[%clk 0:00:30.7]} 32... Nc3 {[%clk 0:00:25.9]} 33. Qb2 {[%clk
0:00:22]} 33... b4 {[%clk 0:00:24.4]} 34. Qd2 {[%clk 0:00:17.8]} 34... h6 {[%clk
0:00:21.4]} 35. g4 {[%clk 0:00:13.3]} 35... Ne7 {[%clk 0:00:17.6]} 36. Bg3
{[%clk 0:00:11.7]} 36... Kf8 {[%clk 0:00:11.9]} 37. Bf2 {[%clk 0:00:11.9]} 37...
Kg8 {[%clk 0:00:11.6]} 38. Kg2 {[%clk 0:00:12.6]} 38... Nc6 {[%clk 0:00:11.4]}
39. Nf5 {[%clk 0:00:11.7]} 39... Ne5 {[%clk 0:00:11.3]} 40. e4 {[%clk
0:00:11.6]} 40... Qe6 {[%clk 0:00:09.7]} 41. Bxc5 {[%clk 0:00:11.9]} 41... dxe4
{[%clk 0:00:08.5]} 42. Qd8+ {[%clk 0:00:11.2]} 42... Kh7 {[%clk 0:00:08.6]} 43.
f4 {[%clk 0:00:11.6]} 43... e3 {[%clk 0:00:06.3]} 44. Rxe3 {[%clk 0:00:11]}
44... Qc6+ {[%clk 0:00:04.9]} 45. Kg3 {[%clk 0:00:09.3]} 45... Qh1 {[%clk
0:00:04.5]} 46. Rxc3 {[%clk 0:00:05]} 46... Qe1+ {[%clk 0:00:04]} 47. Bf2 {[%clk
0:00:05.2]} 47... Qxc3+ {[%clk 0:00:04.2]} 48. Kh2 {[%clk 0:00:03.9]} 48... Nf3+
{[%clk 0:00:04.4]} 49. Kg2 {[%clk 0:00:04.5]} 49... Qc2 {[%clk 0:00:03]} 50. Qe7
{[%clk 0:00:04.5]} 50... Ne1+ {[%clk 0:00:02.4]} 51. Kf1 {[%clk 0:00:04.8]}
51... Qd3+ {[%clk 0:00:02.3]} 52. Kxe1 {[%clk 0:00:04.5]} 52... Qb1+ {[%clk
0:00:01.8]} 53. Ke2 {[%clk 0:00:05.1]} 53... Qc2+ {[%clk 0:00:02.3]} 54. Kf3
{[%clk 0:00:05.7]} 54... Qd3+ {[%clk 0:00:01.8]} 55. Kg2 {[%clk 0:00:06.3]}
55... Qd5+ {[%clk 0:00:01.3]} 56. Kg3 {[%clk 0:00:07]} 56... Qg8 {[%clk
0:00:01.6]} 57. Qd7 {[%clk 0:00:06.7]} 57... h5 {[%clk 0:00:02.3]} 58. Bd4
{[%clk 0:00:07]} 58... Qf8 {[%clk 0:00:01.1]} 59. Bc5 {[%clk 0:00:05.8]} 59...
Kg6 {[%clk 0:00:00.3]} 60. Bxf8 {[%clk 0:00:05.3]} 1-0

[Event "Early-Titled-Tuesday-Blitz-April-16-2024"]
[Site "Chess.com"]
[Date "2024.04.16"]
[Round "2"]
[White "superchess02"]
[Black "Kazmin_Semyon"]
[Result "1-0"]
[WhiteElo "2881"]
[BlackElo "2583"]
[TimeControl "180+1"]
[EndTime "8:18:54 PDT"]
[Termination "superchess02 won by resignation"]

1. d4 {[%clk 0:02:59.5]} 1... Nf6 {[%clk 0:02:59.7]} 2. c4 {[%clk 0:03:00.1]}
2... e6 {[%clk 0:03:00.3]} 3. Nc3 {[%clk 0:03:00.3]} 3... Bb4 {[%clk 0:03:01]}
4. Qc2 {[%clk 0:03:00.1]} 4... d5 {[%clk 0:02:59.2]} 5. a3 {[%clk 0:02:57.2]}
5... Bxc3+ {[%clk 0:02:58.9]} 6. Qxc3 {[%clk 0:02:58.1]} 6... Ne4 {[%clk
0:02:57.9]} 7. Qc2 {[%clk 0:02:56.6]} 7... c5 {[%clk 0:02:58.6]} 8. dxc5 {[%clk
0:02:54.5]} 8... Nc6 {[%clk 0:02:59.2]} 9. Nf3 {[%clk 0:02:49.8]} 9... Qa5+
{[%clk 0:02:57.8]} 10. Bd2 {[%clk 0:02:49.5]} 10... Qxc5 {[%clk 0:02:56.5]} 11.
e3 {[%clk 0:02:48.3]} 11... Nxd2 {[%clk 0:02:54.6]} 12. Nxd2 {[%clk 0:02:47.4]}
12... dxc4 {[%clk 0:02:49.7]} 13. Bxc4 {[%clk 0:02:43.7]} 13... O-O {[%clk
0:02:48]} 14. O-O {[%clk 0:02:42.7]} 14... e5 {[%clk 0:02:46.8]} 15. b4 {[%clk
0:02:40.3]} 15... Qe7 {[%clk 0:02:46.2]} 16. Bd3 {[%clk 0:02:36.8]} 16... h6
{[%clk 0:02:43.2]} 17. Be4 {[%clk 0:02:35.1]} 17... Bd7 {[%clk 0:02:29.3]} 18.
Nb3 {[%clk 0:02:35.3]} 18... Rac8 {[%clk 0:02:27.1]} 19. Nc5 {[%clk 0:02:31.4]}
19... Nd8 {[%clk 0:02:18.4]} 20. Rfd1 {[%clk 0:02:16.4]} 20... Bc6 {[%clk
0:02:16.3]} 21. Bxc6 {[%clk 0:02:12.6]} 21... Rxc6 {[%clk 0:02:17.2]} 22. Qe4
{[%clk 0:02:05.6]} 22... Rc7 {[%clk 0:01:59.1]} 23. Rd5 {[%clk 0:02:02.5]} 23...
b6 {[%clk 0:01:34.3]} 24. Nd3 {[%clk 0:01:04.6]} 24... f6 {[%clk 0:01:26.8]} 25.
h4 {[%clk 0:01:02.5]} 25... Nf7 {[%clk 0:01:13.5]} 26. b5 {[%clk 0:01:02.6]}
26... Rfc8 {[%clk 0:01:09.6]} 27. Nb4 {[%clk 0:00:53.9]} 27... Rc4 {[%clk
0:00:49.6]} 28. Qf5 {[%clk 0:00:53.6]} 28... Nd6 {[%clk 0:00:33.2]} 29. Qd3
{[%clk 0:00:53.5]} 29... Rc1+ {[%clk 0:00:26.2]} 30. Rxc1 {[%clk 0:00:53.1]}
30... Rxc1+ {[%clk 0:00:27.1]} 31. Kh2 {[%clk 0:00:53.4]} 31... f5 {[%clk
0:00:25.7]} 32. g3 {[%clk 0:00:40.8]} 32... Ne4 {[%clk 0:00:25.9]} 33. Nc6
{[%clk 0:00:33]} 33... Qf6 {[%clk 0:00:17]} 34. Kg2 {[%clk 0:00:24.2]} 34... Ra1
{[%clk 0:00:14.9]} 35. Rxe5 {[%clk 0:00:22.6]} 35... Kh7 {[%clk 0:00:08.1]} 36.
Qd5 {[%clk 0:00:19.6]} 36... Rc1 {[%clk 0:00:02]} 37. Rxf5 {[%clk 0:00:15.3]}
37... Rc5 {[%clk 0:00:01.9]} 38. Rxf6 {[%clk 0:00:13.2]} 38... Rxd5 {[%clk
0:00:02.6]} 39. Rf7 {[%clk 0:00:13.9]} 39... Nc3 {[%clk 0:00:01.6]} 40. Nd4
{[%clk 0:00:13.4]} 40... Nxb5 {[%clk 0:00:01.2]} 41. Nxb5 {[%clk 0:00:13.8]}
41... Rxb5 {[%clk 0:00:02.1]} 42. Rxa7 {[%clk 0:00:14.3]} 42... Rb2 {[%clk
0:00:02.8]} 43. Kf3 {[%clk 0:00:14.5]} 43... Ra2 {[%clk 0:00:03.2]} 44. h5
{[%clk 0:00:14.7]} 44... b5 {[%clk 0:00:02.4]} 45. Ra5 {[%clk 0:00:15]} 45...
Kg8 {[%clk 0:00:01.7]} 46. Rxb5 {[%clk 0:00:14.8]} 46... Rxa3 {[%clk 0:00:02.6]}
47. Rb7 {[%clk 0:00:15.4]} 47... Kh7 {[%clk 0:00:02.2]} 48. g4 {[%clk
0:00:15.7]} 48... Ra5 {[%clk 0:00:03.1]} 49. Kf4 {[%clk 0:00:15.7]} 49... Kg8
{[%clk 0:00:04]} 50. e4 {[%clk 0:00:16.1]} 50... Kf8 {[%clk 0:00:04.9]} 51. f3
{[%clk 0:00:16.6]} 51... Rc5 {[%clk 0:00:05.5]} 52. Rd7 {[%clk 0:00:16.7]} 52...
Ra5 {[%clk 0:00:05.8]} 53. Rb7 {[%clk 0:00:16.9]} 53... Ra3 {[%clk 0:00:06.7]}
54. e5 {[%clk 0:00:17]} 54... Rc3 {[%clk 0:00:03.6]} 55. Ke4 {[%clk 0:00:17]}
55... Rc4+ {[%clk 0:00:02.5]} 56. Kf5 {[%clk 0:00:17.4]} 56... Rc6 {[%clk
0:00:03.3]} 57. f4 {[%clk 0:00:17.5]} 57... Ra6 {[%clk 0:00:03.6]} 58. Rd7
{[%clk 0:00:16.8]} 58... Kg8 {[%clk 0:00:02.3]} 59. e6 {[%clk 0:00:16]} 59...
Kf8 {[%clk 0:00:02.1]} 60. Rf7+ {[%clk 0:00:14.2]} 60... Kg8 {[%clk 0:00:02.6]}
61. Rb7 {[%clk 0:00:14.5]} 61... Kf8 {[%clk 0:00:03]} 62. g5 {[%clk 0:00:14.4]}
62... hxg5 {[%clk 0:00:01.1]} 63. fxg5 {[%clk 0:00:15.3]} 63... Rc6 {[%clk
0:00:01.2]} 64. h6 {[%clk 0:00:15.2]} 64... gxh6 {[%clk 0:00:02.1]} 65. gxh6
{[%clk 0:00:16]} 65... Ra6 {[%clk 0:00:02.4]} 66. Kf6 {[%clk 0:00:16.1]} 66...
Kg8 {[%clk 0:00:02.2]} 67. Rb8+ {[%clk 0:00:14.6]} 67... Kh7 {[%clk 0:00:02.7]}
68. Kf7 {[%clk 0:00:15.3]} 68... Ra1 {[%clk 0:00:01.7]} 69. e7 {[%clk
0:00:12.1]} 69... Rf1+ {[%clk 0:00:02.3]} 70. Ke6 {[%clk 0:00:12.5]} 70... Re1+
{[%clk 0:00:03]} 71. Kd6 {[%clk 0:00:12.8]} 71... Rd1+ {[%clk 0:00:03.7]} 72.
Kc5 {[%clk 0:00:13]} 72... Rc1+ {[%clk 0:00:04.4]} 73. Kd4 {[%clk 0:00:13.3]}
73... Rd1+ {[%clk 0:00:05]} 74. Kc3 {[%clk 0:00:13.5]} 74... Re1 {[%clk
0:00:04.2]} 75. e8=Q {[%clk 0:00:13.9]} 1-0